bitfinex-derivatives/quotes_BTCF0:USTF0_20251119
["timestamp","ask_amount","ask_price","bid_price","bid_amount"]
[1763520878900,0.03865123,92766.0,92765.0,0.1511338]
[1763520879101,0.03965123,92766.0,92765.0,0.1511338]
[1763520879298,0.00143123,92766.0,92765.0,0.1511338]
[1763520879502,0.02054123,92766.0,92765.0,0.1511338]
[1763520879808,0.04165123,92766.0,92765.0,0.1511338]
[1763520880312,0.00343123,92766.0,92765.0,0.1511338]
[1763520881609,0.04165123,92766.0,92765.0,0.1511338]
[1763520882705,0.04165123,92766.0,92765.0,0.04326]
[1763520883315,0.04165123,92766.0,92764.0,0.3608]
[1763520883617,0.1460986,92761.0,92760.0,0.00219803]
[1763520883807,0.4058986,92761.0,92760.0,0.00219803]
[1763520884714,0.4068986,92761.0,92760.0,0.00219803]
[1763520884915,0.29902,92761.0,92760.0,0.04545803]
[1763520886618,0.29802,92761.0,92760.0,0.04545803]
[1763520886818,0.29902,92761.0,92760.0,0.04545803]
[1763520887210,0.2598,92761.0,92760.0,0.04545803]
[1763520887415,0.2608,92761.0,92760.0,0.04545803]
[1763520887611,0.001,92761.0,92760.0,0.04545803]
[1763520887816,0.00043123,92766.0,92765.0,0.1511338]
[1763520889822,0.03865123,92766.0,92765.0,0.1511338]
[1763520890126,0.02054123,92766.0,92765.0,0.1511338]
[1763520891311,0.03965123,92766.0,92765.0,0.1511338]
[1763520892711,0.03865123,92766.0,92765.0,0.1511338]
[1763520892925,0.02054123,92766.0,92765.0,0.1511338]
[1763520893513,0.00143123,92766.0,92765.0,0.1511338]
[1763520893719,0.03880691,92782.0,92781.0,0.04326]
[1763520893923,0.29798,92788.0,92787.0,0.04326]
[1763520894218,0.29798,92788.0,92787.0,0.1511091]
[1763520894421,0.27887,92788.0,92787.0,0.1511091]
[1763520894620,0.25976,92788.0,92787.0,0.1511091]
[1763520894919,0.29798,92788.0,92787.0,0.1511091]
[1763520895116,0.27887,92788.0,92787.0,0.1511091]
[1763520895519,0.25976,92788.0,92787.0,0.1511091]
[1763520895721,0.29798,92788.0,92787.0,0.04326]
[1763520896024,0.03822,92781.0,92780.0,0.40406]
[1763520896319,0.03822,92781.0,92780.0,0.40625803]
[1763520896924,0.03822,92781.0,92780.0,0.00219803]
[1763520898030,0.03822,92781.0,92780.0,0.04637803]
[1763520898326,0.03922,92781.0,92780.0,0.04637803]
[1763520898716,0.03880691,92802.0,92796.0,0.1525478]
[1763520898920,0.39902,92823.0,92822.0,0.04471]
[1763520899810,0.3608,92823.0,92822.0,0.04471]
[1763520900015,0.3628,92823.0,92822.0,0.04471]
[1763520900215,0.002,92823.0,92822.0,0.04471]
[1763520900619,0.002,92823.0,92822.0,0.40551]
[1763520901014,0.26006703,92832.0,92831.0,0.1525071]
[1763520901224,0.26006703,92832.0,92831.0,0.5133071]
[1763520902224,0.26106703,92832.0,92831.0,0.5133071]
[1763520902829,0.26206703,92832.0,92831.0,0.5133071]
[1763520903824,0.00210703,92832.0,92831.0,0.5133071]
[1763520909625,0.3608,92879.0,92877.0,0.1524537]
[1763520909817,0.39902,92879.0,92878.0,0.04471]
[1763520910020,0.2598,92895.0,92879.0,0.1524514]
[1763520910021,0.3608,92880.0,92879.0,0.1524514]
[1763520910216,0.3608,92891.0,92869.0,0.01353]
[1763520910217,0.03822,92881.0,92880.0,0.00219803]
[1763520910421,0.03822,92863.0,92862.0,0.05824]
[1763520911529,0.1459744,92868.0,92867.0,0.04471]
[1763520912935,0.03922,92868.0,92867.0,0.04471]
[1763520913635,0.001,92868.0,92867.0,0.04471]
[1763520913820,0.002,92868.0,92867.0,0.04471]
[1763520914431,0.02111,92868.0,92867.0,0.04471]
[1763520914634,0.002,92868.0,92867.0,0.04471]
[1763520915027,0.02111,92868.0,92867.0,0.04471]
[1763520916226,0.04022,92868.0,92867.0,0.04471]
[1763520917431,0.02111,92868.0,92867.0,0.04471]
[1763520918227,0.002,92868.0,92867.0,0.04471]
[1763520918434,0.02111,92868.0,92867.0,0.04471]
[1763520918934,0.04022,92868.0,92867.0,0.04471]
[1763520919329,0.1459858,92858.0,92857.0,0.02236]
[1763520919529,0.1459904,92854.0,92841.0,0.01353]
[1763520920831,0.1460124,92835.0,92834.0,0.05824]
[1763520921229,0.1460124,92835.0,92830.0,0.00219803]
[1763520921230,0.1460171,92831.0,92830.0,0.04690803]
[1763520921531,0.03822,92831.0,92830.0,0.04690803]
[1763520922536,0.01811,92831.0,92830.0,0.04690803]
[1763520922731,0.00016127,92840.0,92839.0,0.04439]
[1763520922732,0.03638127,92840.0,92839.0,0.04439]
[1763520922931,0.03622,92836.0,92835.0,0.03481]
[1763520923232,0.1440173,92831.0,92830.0,0.38485803]
[1763520923440,0.1440173,92831.0,92830.0,0.40738803]
[1763520924229,0.03622,92831.0,92830.0,0.40738803]
[1763520924423,0.03638127,92840.0,92839.0,0.04439]
[1763520925038,0.03638127,92840.0,92835.0,0.01295]
[1763520925039,0.03622,92836.0,92835.0,0.03481]
[1763520925227,0.03622,92831.0,92830.0,0.40738803]
[1763520925736,0.01811,92831.0,92830.0,0.40738803]
[1763520925932,0.03622,92837.0,92836.0,0.04439]
[1763520926233,0.00116127,92840.0,92836.0,0.04439]
[1763520926440,0.00116127,92840.0,92839.0,0.04439]
[1763520926629,0.10894787,92840.0,92839.0,0.04439]
[1763520927435,0.03622,92831.0,92830.0,0.40402]
[1763520927623,0.03622,92831.0,92830.0,0.04541803]
[1763520927624,0.1440171,92831.0,92830.0,0.04541803]
[1763520928534,0.1440171,92831.0,92821.0,0.02205156]
[1763520928535,0.1440275,92822.0,92821.0,0.02205156]
[1763520928837,0.1440275,92822.0,92821.0,0.00016156]
[1763520930246,0.03622,92822.0,92821.0,0.04338156]
[1763520930429,0.001,92822.0,92821.0,0.04338156]
[1763520930834,0.1450275,92822.0,92821.0,0.04338156]
[1763520931238,0.1460275,92822.0,92821.0,0.04338156]
[1763520931836,0.03822,92822.0,92821.0,0.15119026]
[1763520935236,0.1460275,92822.0,92821.0,0.04338156]
[1763520935743,0.03822,92822.0,92821.0,0.04338156]
[1763520940640,0.03822,92822.0,92821.0,0.15119046]
[1763520941336,0.03822,92822.0,92821.0,0.04338156]
[1763520942449,0.03822,92822.0,92821.0,0.00016156]
[1763520942840,0.1440369,92814.0,92813.0,0.03529]
[1763520943347,0.1440369,92814.0,92813.0,0.05662]
[1763520944036,0.1450369,92814.0,92813.0,0.05662]
[1763520945538,0.1269269,92814.0,92813.0,0.05662]
[1763520945740,0.001,92814.0,92813.0,0.05662]
[1763520946349,0.1450369,92814.0,92813.0,0.05662]
[1763520946540,0.1450369,92814.0,92813.0,0.04322]
[1763520946944,0.1450369,92814.0,92813.0,0.05662]
[1763520947147,0.1088169,92814.0,92813.0,0.05662]
[1763520948248,0.001,92814.0,92813.0,0.05662]
[1763520951049,0.03722,92814.0,92813.0,0.05662]
[1763520951646,0.03722,92814.0,92813.0,0.04322]
[1763520952248,0.03722,92814.0,92813.0,0.05662]
[1763520952653,0.03622,92814.0,92813.0,0.05662]
[1763520953348,0.03722,92814.0,92813.0,0.05662]
[1763520953744,0.03622,92814.0,92813.0,0.05662]
[1763520954752,0.01811,92814.0,92813.0,0.05662]
[1763520954943,0.03622,92814.0,92813.0,0.05662]
[1763520955143,0.3676958,92815.0,92814.0,0.04322]
[1763520956047,0.4039158,92815.0,92814.0,0.04322]
[1763520957842,0.25988,92815.0,92814.0,0.04322]
[1763520958048,0.4686096,92821.0,92820.0,0.0586]
[1763520958244,0.7284496,92821.0,92820.0,0.05933267]
[1763520958443,0.7465596,92821.0,92820.0,0.05933267]
[1763520959050,0.7646696,92821.0,92820.0,0.05933267]
[1763520959252,0.7656696,92821.0,92820.0,0.05933267]
[1763520959453,0.7666696,92821.0,92820.0,0.05933267]
[1763520959853,0.7656696,92821.0,92820.0,0.05933267]
[1763520960955,0.7646696,92821.0,92820.0,0.05933267]
[1763520962649,0.1440417,92810.0,92809.0,0.38357]
[1763520962854,0.14623973,92810.0,92809.0,0.38357]
[1763520963049,0.14623973,92810.0,92809.0,0.4067]
[1763520964855,0.1440452,92807.0,92806.0,0.00026938]
[1763520965160,0.1440452,92807.0,92806.0,0.05886938]
[1763520965950,0.03622,92807.0,92806.0,0.05886938]
[1763520967552,0.01811,92807.0,92806.0,0.05886938]
[1763520967755,0.64090803,92810.0,92809.0,0.0459]
[1763520967952,0.26199803,92810.0,92809.0,0.0459]
[1763520970963,0.03880148,92812.0,92811.0,0.0459]
[1763520971152,0.03880148,92813.0,92812.0,0.1537192]
[1763520971555,0.03880148,92814.0,92812.0,0.1537192]
[1763520971755,0.03880148,92814.0,92810.0,0.00073267]
[1763520971756,0.1440345,92816.0,92815.0,0.0459]
[1763520972465,0.03880148,92818.0,92817.0,0.0459]
[1763520974159,0.1440368,92814.0,92813.0,0.02277]
[1763520974358,0.03622,92814.0,92813.0,0.0459]
[1763520977062,0.3676548,92816.0,92795.0,0.03870114]
[1763520977063,0.03568,92805.0,92795.0,0.03870114]
[1763520977267,0.1435296,92786.0,92785.0,0.0586]
[1763520977958,0.1435296,92786.0,92783.0,0.3608]
[1763520978157,0.03568,92784.0,92783.0,0.3608]
[1763520978359,0.03568,92781.0,92780.0,0.00073267]
[1763520978760,0.1415412,92776.0,92775.0,0.00016165]
[1763520979354,0.1405412,92776.0,92775.0,0.00016165]
[1763520979861,0.1395412,92776.0,92775.0,0.00016165]
[1763520980062,0.01703803,92780.0,92779.0,0.0459]
[1763520980256,0.13973473,92780.0,92779.0,0.0459]
[1763520981467,0.13973473,92780.0,92779.0,0.0479]
[1763520983162,0.13973473,92780.0,92779.0,0.002]
[1763520983662,0.13973473,92780.0,92779.0,0.04592]
[1763520985761,0.13973473,92780.0,92779.0,0.002]
[1763520985961,0.1375419,92776.0,92775.0,0.00016165]
[1763520987071,0.1375419,92776.0,92775.0,0.00116165]
[1763520987772,0.1375419,92776.0,92775.0,0.00216165]
[1763520988466,0.1375419,92776.0,92775.0,0.04633165]
[1763520988665,0.1375419,92776.0,92775.0,0.00216165]
[1763520990973,0.1375419,92776.0,92775.0,0.04730165]
[1763520994475,0.1375419,92776.0,92775.0,0.00216165]
[1763520994972,0.1375517,92767.0,92766.0,0.00013527]
[1763520995274,0.27488,92767.0,92766.0,0.04527527]
[1763520995474,0.28972,92767.0,92766.0,0.04527527]
[1763520995676,0.27488,92767.0,92766.0,0.04527527]
[1763520995976,0.28972,92767.0,92766.0,0.04627527]
[1763520997365,0.28972,92767.0,92766.0,0.04727527]
[1763520997875,0.27488,92767.0,92766.0,0.04727527]
[1763520998270,0.28972,92767.0,92766.0,0.00213527]
[1763520998570,0.1375679,92758.0,92757.0,0.02262165]
[1763520998772,0.3976079,92758.0,92757.0,0.00016165]
[1763520999168,0.1375819,92746.0,92745.0,0.04514]
[1763520999768,0.13766365,92746.0,92745.0,0.04514]
[1763521000166,0.13566365,92746.0,92745.0,0.04514]
[1763521000762,0.13566365,92746.0,92745.0,0.04614]
[1763521000763,0.13366365,92746.0,92745.0,0.04614]
[1763521001072,0.02976175,92746.0,92745.0,0.04614]
[1763521001463,0.02976175,92746.0,92745.0,0.04714]
[1763521004076,8.175e-05,92746.0,92745.0,0.04714]
[1763521004279,0.02976175,92746.0,92745.0,0.04714]
[1763521005780,0.13766425,92746.0,92745.0,0.04714]
[1763521006673,0.13766425,92746.0,92745.0,0.002]
[1763521007473,0.13766425,92746.0,92745.0,0.02446]
[1763521007676,0.1375925,92737.0,92736.0,0.00016165]
[1763521007876,0.39777761,92737.0,92736.0,0.00016165]
[1763521008179,0.1376018,92729.0,92728.0,0.03557]
[1763521008365,0.3976818,92729.0,92728.0,0.03557]
[1763521008568,0.3976818,92729.0,92728.0,0.05825]
[1763521009971,0.3966818,92729.0,92728.0,0.05825]
[1763521010878,0.3966818,92729.0,92728.0,0.05925]
[1763521012981,0.28976,92729.0,92728.0,0.05925]
[1763521013686,0.28976,92729.0,92728.0,0.001]
[1763521013875,0.28976,92729.0,92728.0,0.04614]
[1763521018683,0.28976,92729.0,92728.0,0.02346]
[1763521019181,0.28976,92729.0,92728.0,0.04538]
[1763521020676,0.3976819,92729.0,92728.0,0.04538]
[1763521021184,0.28976,92729.0,92728.0,0.04538]
[1763521022186,0.00219803,92730.0,92729.0,0.1663317]
[1763521022486,0.26227803,92730.0,92729.0,0.1663317]
[1763521023485,0.26227803,92730.0,92729.0,0.1673317]
[1763521023673,0.27711803,92730.0,92729.0,0.05941]
[1763521023878,0.29195803,92730.0,92729.0,0.05941]
[1763521025085,0.29195803,92730.0,92729.0,0.001]
[1763521025383,0.29195803,92730.0,92729.0,0.02354]
[1763521026577,0.29195803,92730.0,92729.0,0.04546]
[1763521027276,0.02968,92727.0,92719.0,0.0001083]
[1763521027484,0.137625,92709.0,92708.0,0.05757]
[1763521027682,0.49855005,92709.0,92708.0,0.05757]
[1763521028676,0.46887005,92709.0,92695.0,0.04446]
[1763521028981,0.1356407,92696.0,92695.0,0.04446]
[1763521029186,0.13574037,92696.0,92695.0,0.04446]
[1763521029986,0.02777967,92696.0,92695.0,0.04446]
[1763521030482,0.02777967,92696.0,92695.0,0.04546]
[1763521030674,9.967e-05,92696.0,92695.0,0.04546]
[1763521030874,0.01393967,92696.0,92695.0,0.04546]
[1763521031080,0.02777967,92696.0,92695.0,0.04546]
[1763521033177,9.967e-05,92696.0,92695.0,0.04546]
[1763521033373,0.00016174,92718.0,92717.0,0.04446]
[1763521034281,0.26028,92727.0,92726.0,0.1523853]
[1763521035687,0.26128,92727.0,92726.0,0.1523853]
[1763521035881,0.26228,92727.0,92726.0,0.1523853]
[1763521036297,0.29016,92727.0,92726.0,0.04446]
[1763521037483,0.28916,92727.0,92726.0,0.04446]
[1763521037986,0.28816,92727.0,92726.0,0.04446]
[1763521038184,0.26028,92727.0,92726.0,0.04446]
[1763521038697,0.26128,92727.0,92726.0,0.04446]
[1763521040195,0.26028,92727.0,92726.0,0.04446]
[1763521040395,0.001,92727.0,92726.0,0.04446]
[1763521040892,0.00219803,92730.0,92720.0,0.37475]
[1763521040893,0.00219803,92730.0,92729.0,0.04446]
[1763521042096,0.00419803,92730.0,92729.0,0.04446]
[1763521043480,0.00319803,92730.0,92729.0,0.04446]
[1763521043789,0.00419803,92730.0,92729.0,0.04446]
[1763521043992,0.00319803,92730.0,92729.0,0.04446]
[1763521044384,0.001,92730.0,92729.0,0.04446]
[1763521045097,0.00016174,92736.0,92735.0,0.1502947]
[1763521045297,0.26024,92747.0,92746.0,0.04238]
[1763521045591,0.27518,92747.0,92746.0,0.40318]
[1763521045792,0.26024,92747.0,92746.0,0.40318]
[1763521047195,0.26124,92747.0,92746.0,0.40318]
[1763521047994,0.26124,92747.0,92746.0,0.04238]
[1763521047995,0.29112,92747.0,92746.0,0.04238]
[1763521048186,0.29012,92747.0,92746.0,0.04238]
[1763521048389,0.29112,92747.0,92746.0,0.04238]
[1763521048588,0.29112,92747.0,92737.0,0.00016174]
[1763521048589,0.1377912,92738.0,92737.0,0.04354174]
[1763521050300,0.1387912,92738.0,92737.0,0.04354174]
[1763521050500,0.1397912,92738.0,92737.0,0.04354174]
[1763521051894,0.16311919,92738.0,92737.0,0.04354174]
[1763521053989,0.42327919,92738.0,92737.0,0.00016174]
[1763521056000,0.42327919,92738.0,92737.0,0.04354174]
[1763521056202,0.31536799,92738.0,92737.0,0.04354174]
[1763521056607,0.31436799,92738.0,92737.0,0.04354174]
[1763521056905,0.31536799,92738.0,92737.0,0.15145414]
[1763521057802,0.31536799,92738.0,92737.0,0.04354174]
[1763521058005,0.30042799,92738.0,92737.0,0.04354174]
[1763521058495,0.31536799,92738.0,92737.0,0.04354174]
[1763521058896,0.30042799,92738.0,92737.0,0.04354174]
[1763521059509,0.31536799,92738.0,92737.0,0.04354174]
[1763521059904,0.30042799,92738.0,92737.0,0.04354174]
[1763521060509,0.29942799,92738.0,92737.0,0.04354174]
[1763521061008,0.31436799,92738.0,92737.0,0.04354174]
[1763521062208,0.31336799,92738.0,92737.0,0.04354174]
[1763521062407,0.02432799,92738.0,92737.0,0.04354174]
[1763521062601,0.00627862,92738.0,92737.0,0.44354174]
[1763521062797,0.03881169,92752.0,92750.0,0.1646274]
[1763521063003,0.1078819,92764.0,92755.0,0.04338]
[1763521063004,0.03881169,92758.0,92755.0,0.04338]
[1763521063405,0.03897343,92756.0,92755.0,0.04338]
[1763521063606,0.01510174,92756.0,92755.0,0.04338]
[1763521064311,0.01610174,92756.0,92755.0,0.04338]
[1763521064507,0.01610174,92756.0,92750.0,0.00073267]
[1763521064508,0.1377767,92751.0,92750.0,0.00073267]
[1763521064715,0.4985767,92751.0,92750.0,0.05746267]
[1763521065107,0.02988,92751.0,92750.0,0.05746267]
[1763521065301,0.26024,92753.0,92752.0,0.04338]
[1763521066011,0.29012,92753.0,92752.0,0.04338]
[1763521066605,0.02988,92751.0,92750.0,0.03541267]
[1763521066806,0.02988,92751.0,92750.0,0.05746267]
[1763521067417,0.02988,92751.0,92750.0,0.00073267]
[1763521067714,0.02988,92751.0,92750.0,0.04411267]
[1763521068615,0.03088,92751.0,92750.0,0.04411267]
[1763521069216,0.03188,92751.0,92750.0,0.04411267]
[1763521070410,0.03188,92751.0,92750.0,0.15200997]
[1763521070808,0.03188,92751.0,92750.0,0.04411267]
[1763521071011,0.1377918,92738.0,92737.0,0.02149174]
[1763521071415,0.1377918,92738.0,92737.0,0.04354174]
[1763521072122,0.00219803,92740.0,92739.0,0.04338]
[1763521072326,0.03207803,92740.0,92739.0,0.04338]
[1763521073730,0.00219803,92740.0,92739.0,0.04338]
[1763521075235,0.02328675,92740.0,92739.0,0.04338]
[1763521075520,0.05536478,92740.0,92739.0,0.04338]
[1763521078525,0.03207803,92740.0,92739.0,0.04338]
[1763521081226,0.02988,92738.0,92737.0,0.04569174]
[1763521081635,0.02988,92738.0,92737.0,0.00016174]
[1763521081929,0.137804,92727.0,92726.0,0.02328]
[1763521082130,0.137811,92721.0,92720.0,0.05888]
[1763521082333,0.137811,92721.0,92720.0,0.00073267]
[1763521082626,0.368084,92727.0,92708.0,0.42032]
[1763521082627,0.02988,92709.0,92708.0,0.42032]
[1763521082927,0.00219803,92710.0,92709.0,0.04553]
[1763521083524,0.01613803,92710.0,92709.0,0.04553]
[1763521083927,0.03107803,92710.0,92709.0,0.04553]
[1763521084426,0.01613803,92710.0,92709.0,0.04553]
[1763521084624,0.01613803,92710.0,92709.0,0.04653]
[1763521085024,0.01613803,92710.0,92709.0,0.04753]
[1763521085628,0.00119803,92710.0,92709.0,0.04753]
[1763521086227,0.01613803,92710.0,92709.0,0.04753]
[1763521086432,0.00119803,92710.0,92709.0,0.04753]
[1763521087335,0.03107803,92710.0,92709.0,0.04753]
[1763521092238,0.00119803,92710.0,92709.0,0.04753]
[1763521092626,0.01613803,92710.0,92709.0,0.04753]
[1763521093033,0.00119803,92710.0,92709.0,0.04753]
[1763521095037,0.01613803,92710.0,92709.0,0.04753]
[1763521095239,0.03107803,92710.0,92709.0,0.04753]
[1763521097334,0.03107803,92710.0,92709.0,0.002]
[1763521097743,0.03107803,92710.0,92709.0,0.02528]
[1763521098736,0.03107803,92710.0,92709.0,0.04753]
[1763521106934,0.01613803,92710.0,92709.0,0.04753]
[1763521107528,0.03107803,92710.0,92709.0,0.04753]
[1763521108639,0.01613803,92710.0,92709.0,0.04753]
[1763521108831,0.03107803,92710.0,92709.0,0.04753]
[1763521109636,0.03107803,92710.0,92709.0,0.1554751]
[1763521109637,0.00119803,92710.0,92709.0,0.1554751]
[1763521110642,0.01613803,92710.0,92709.0,0.1554751]
[1763521113245,0.03107803,92710.0,92709.0,0.1554751]
[1763521113438,0.00119803,92710.0,92709.0,0.1554751]
[1763521114847,0.01613803,92710.0,92709.0,0.04753]
[1763521115147,0.00119803,92710.0,92709.0,0.04553]
[1763521116744,0.03107803,92710.0,92709.0,0.04553]
[1763521117053,0.06983121,92710.0,92709.0,0.04553]
[1763521117749,0.03107803,92710.0,92709.0,0.04553]
[1763521118149,0.01613803,92710.0,92709.0,0.04553]
[1763521118351,0.03107803,92710.0,92709.0,0.04553]
[1763521118541,0.06988463,92710.0,92709.0,0.04553]
[1763521119549,0.00119803,92710.0,92709.0,0.04553]
[1763521119940,0.13902183,92710.0,92709.0,0.04553]
[1763521120352,0.03107803,92710.0,92709.0,0.04553]
[1763521120552,0.12408183,92710.0,92709.0,0.04553]
[1763521121950,0.00119803,92710.0,92709.0,0.04553]
[1763521122741,0.26012,92713.0,92712.0,0.05616]
[1763521122945,0.26012,92713.0,92708.0,0.05276101]
[1763521122946,0.02988,92709.0,92708.0,1e-08]
[1763521123147,0.02988,92709.0,92685.0,0.09683886]
[1763521123148,0.1378512,92687.0,92674.0,9e-08]
[1763521123347,0.78405057,92687.0,92670.0,0.01278]
[1763521123548,0.78405057,92687.0,92686.0,0.04364973]
[1763521123549,0.41575937,92687.0,92686.0,0.04364973]
[1763521123744,0.01913662,92688.0,92687.0,0.05616]
[1763521123946,0.05816844,92701.0,92700.0,0.04338]
[1763521124149,0.1079514,92704.0,92703.0,0.04338]
[1763521124351,0.20956856,92704.0,92703.0,0.04338]
[1763521124754,0.15143118,92704.0,92703.0,0.02201]
[1763521124952,0.0434,92701.0,92700.0,0.02374267]
[1763521125152,0.0434,92701.0,92700.0,0.04611267]
[1763521125653,0.0434,92701.0,92700.0,0.04511267]
[1763521127358,0.0434,92701.0,92700.0,0.04611267]
[1763521127753,0.30392,92701.0,92700.0,0.001]
[1763521127955,0.1513706,92687.0,92686.0,0.00026973]
[1763521128155,0.77281061,92687.0,92686.0,0.00026973]
[1763521128761,0.66484001,92687.0,92686.0,0.02227973]
[1763521128953,0.66484001,92687.0,92686.0,0.04364973]
[1763521129155,0.77281061,92687.0,92686.0,0.04364973]
[1763521130263,0.77281061,92687.0,92686.0,0.04464973]
[1763521130456,0.77281061,92687.0,92686.0,0.04564973]
[1763521130759,0.77281061,92687.0,92686.0,0.00226973]
[1763521132758,0.77281061,92687.0,92686.0,0.02427973]
[1763521133364,0.66484001,92687.0,92686.0,0.04564973]
[1763521135873,0.6889502,92687.0,92686.0,0.04564973]
[1763521136664,0.7020402,92687.0,92686.0,0.00226973]
[1763521137060,0.0434,92676.0,92675.0,0.3608]
[1763521137260,0.0434,92667.0,92666.0,0.40418]
[1763521139055,0.0434,92667.0,92666.0,0.3608]
[1763521139654,0.0424,92667.0,92666.0,0.3608]
[1763521140163,0.30296,92667.0,92666.0,0.38379]
[1763521140363,0.30296,92667.0,92655.0,0.40564]
[1763521140364,0.1510667,92656.0,92655.0,0.40564]
[1763521141061,0.3608,92656.0,92645.0,0.01367]
[1763521141265,0.1080265,92639.0,92624.0,0.01367]
[1763521141468,0.1080265,92639.0,92638.0,0.00163922]
[1763521141469,0.76470719,92639.0,92638.0,0.00163922]
[1763521141669,0.76470719,92639.0,92624.0,0.01367]
[1763521141670,0.1080348,92632.0,92631.0,0.05851]
[1763521141871,0.1320821,92632.0,92631.0,0.05851]
[1763521142173,0.1321663,92632.0,92631.0,0.05851]
[1763521142370,0.1080512,92618.0,92617.0,0.05851]
[1763521142573,0.1080617,92609.0,92608.0,0.05851]
[1763521142866,0.4688617,92609.0,92608.0,0.05851]
[1763521143871,0.3608,92609.0,92608.0,0.05851]
[1763521153580,0.2908,92609.0,92608.0,0.05851]
[1763521154180,0.00026836,92618.0,92617.0,0.1528922]
[1763521154484,0.03829845,92652.0,92617.0,0.1528922]
[1763521154485,0.40486,92644.0,92643.0,0.04484]
[1763521154682,0.1080276,92639.0,92626.0,0.04484]
[1763521154888,0.00219803,92640.0,92632.0,0.02299]
[1763521154889,0.40486,92633.0,92632.0,0.02299]
[1763521155284,0.1080353,92632.0,92618.0,0.1080505]
[1763521155490,0.3608,92620.0,92619.0,0.04484]
[1763521155693,0.36299803,92620.0,92619.0,0.04484]
[1763521155880,0.38509803,92620.0,92619.0,0.04484]
[1763521156086,0.40705803,92620.0,92619.0,0.04484]
[1763521156987,0.40805803,92620.0,92619.0,0.04484]
[1763521157181,0.40905803,92620.0,92619.0,0.04484]
[1763521158376,0.40905803,92620.0,92619.0,0.02299]
[1763521158579,0.04406,92617.0,92616.0,0.02315193]
[1763521158775,0.04406,92617.0,92616.0,0.04500193]
[1763521159279,0.0221,92617.0,92616.0,0.05867193]
[1763521159588,0.72579803,92620.0,92619.0,0.04484]
[1763521159781,0.72479803,92620.0,92619.0,0.04484]
[1763521159980,0.72379803,92620.0,92619.0,0.04484]
[1763521161791,0.72479803,92620.0,92619.0,0.04484]
[1763521162097,0.72579803,92620.0,92619.0,0.04484]
[1763521163186,0.74789803,92620.0,92619.0,0.04484]
[1763521163393,0.76913803,92620.0,92619.0,0.04484]
[1763521164379,0.04381,92617.0,92616.0,0.00016193]
[1763521164585,0.04381,92617.0,92616.0,0.02199193]
[1763521164779,0.04381,92617.0,92616.0,0.05676193]
[1763521165689,0.04581,92617.0,92616.0,0.05676193]
[1763521166088,0.002,92617.0,92616.0,0.05676193]
[1763521167185,0.04581,92617.0,92616.0,0.05676193]
[1763521167392,0.002,92617.0,92616.0,0.05676193]
[1763521169184,0.3608,92620.0,92619.0,0.04302]
[1763521169384,0.00011887,92631.0,92627.0,0.1510605]
[1763521169385,0.3608,92628.0,92627.0,0.1510605]
[1763521169580,0.38500839,92628.0,92627.0,0.1510605]
[1763521170291,0.42896839,92628.0,92627.0,0.04302]
[1763521170988,0.42996839,92628.0,92627.0,0.1510605]
[1763521171799,0.43096839,92628.0,92627.0,0.1510605]
[1763521172588,0.43096839,92628.0,92627.0,0.04302]
[1763521173094,0.04396,92617.0,92616.0,0.04318193]
[1763521173410,0.04396,92617.0,92616.0,0.15123523]
[1763521174288,0.04496,92617.0,92616.0,0.15123523]
[1763521174797,0.02231,92617.0,92616.0,0.15123523]
[1763521175184,0.04496,92617.0,92616.0,0.15123523]
[1763521175590,0.04596,92617.0,92616.0,0.15123523]
[1763521175796,0.05921,92617.0,92616.0,0.15123523]
[1763521176297,0.04596,92617.0,92616.0,0.15123523]
[1763521177698,0.05921,92617.0,92616.0,0.15123523]
[1763521179887,0.02331,92617.0,92616.0,0.15123523]
[1763521180701,0.04596,92617.0,92616.0,0.15123523]
[1763521182803,0.08345477,92617.0,92616.0,0.15123523]
[1763521183402,0.08345477,92617.0,92616.0,0.02209193]
[1763521183602,0.08357364,92617.0,92616.0,0.00016193]
[1763521186204,0.08357364,92617.0,92616.0,0.04318193]
[1763521186504,0.02636364,92617.0,92616.0,0.04318193]
[1763521186806,0.02636581,92617.0,92616.0,0.05661193]
[1763521187001,0.00219803,92620.0,92619.0,0.04302]
[1763521187204,0.38211,92628.0,92627.0,0.1510606]
[1763521187404,0.3608,92628.0,92627.0,0.1510606]
[1763521188497,0.3608,92637.0,92633.0,0.04302]
[1763521188809,0.3608,92637.0,92633.0,0.1510535]
[1763521190098,0.00116193,92634.0,92633.0,0.1510535]
[1763521190509,0.02247193,92634.0,92633.0,0.1510535]
[1763521190999,0.02347193,92634.0,92633.0,0.1510535]
[1763521191198,0.02347193,92634.0,92629.0,0.1510574]
[1763521191199,0.04396,92630.0,92629.0,0.1510574]
[1763521191401,0.04615803,92630.0,92629.0,0.1510574]
[1763521192510,0.04715803,92630.0,92629.0,0.1510574]
[1763521192704,0.04815803,92630.0,92629.0,0.1510574]
[1763521194915,0.02221312,92630.0,92629.0,0.1510574]
[1763521195104,0.04352312,92630.0,92629.0,0.1510574]
[1763521195304,0.04352312,92630.0,92629.0,0.1510583]
[1763521195504,0.04352312,92630.0,92629.0,0.04302]
[1763521198316,0.04352312,92630.0,92623.0,0.1532447]
[1763521198317,0.04396,92624.0,92623.0,0.1532447]
[1763521198514,0.02279,92624.0,92623.0,0.1532447]
[1763521198811,0.04596,92630.0,92629.0,0.1532382]
[1763521199016,0.04815803,92630.0,92629.0,0.1532382]
[1763521199419,0.00319803,92630.0,92629.0,0.1532382]
[1763521199620,0.02746697,92630.0,92629.0,0.1532382]
[1763521200615,0.07042697,92630.0,92629.0,0.0452]
[1763521201412,0.07242697,92630.0,92629.0,0.0452]
[1763521202415,0.152011,92618.0,92617.0,0.1532512]
[1763521202717,0.152011,92618.0,92617.0,0.0452]
[1763521203318,0.06820883,92618.0,92617.0,0.05787]
[1763521204226,0.04396,92618.0,92617.0,0.05787]
[1763521205419,0.15420683,92620.0,92619.0,0.0452]
[1763521205620,0.17845019,92620.0,92619.0,0.0452]
[1763521205922,0.07040139,92620.0,92619.0,0.0452]
[1763521206912,0.17845019,92620.0,92619.0,0.0452]
[1763521207521,0.1648822,92617.0,92616.0,0.10821533]
[1763521207726,0.1648822,92617.0,92616.0,0.02239193]
[1763521207915,0.1648822,92617.0,92616.0,0.04536193]
[1763521208319,0.1648822,92617.0,92616.0,0.00016193]
[1763521208524,0.1891326,92617.0,92616.0,0.00016193]
[1763521209726,0.1648822,92617.0,92616.0,0.04536193]